{"text_format":"1","workbook":"xlsx","n_sheets":2,"sheets":["Лист1","Лист2"],"not_rendered":{"charts":0,"images":38,"macros":1,"external_links":0,"defined_names":3,"comments":1,"pivot_tables":0},"unopened":[],"bounds":{"document_bytes":16777216,"sheet_cells":100000,"rows_first":2000,"rows_last":500,"rows_between":2000,"halvings":0,"cell_chars":16384,"cell_head_chars":4096},"cells_cut":0,"cells_raw":0,"read":"whole","date_system":"1900"}

{"sheet":"Лист1","index":0,"n_rows":44,"n_cols":8,"rows_kept":44,"cut":false,"hidden":false,"merged":[[13,0,13,1],[13,5,13,7],[42,0,42,7],[43,2,44,7],[8,5,8,7],[10,5,10,7],[38,0,38,1],[39,1,39,7],[40,0,40,1],[40,2,40,7],[41,0,41,1],[41,2,41,7],[34,0,34,1],[34,2,34,4],[34,5,34,7],[37,0,37,1],[31,0,31,1],[31,2,31,4],[31,5,31,7],[37,2,37,4],[37,5,37,7],[32,0,32,1],[32,2,32,4],[32,5,32,7],[33,0,33,1],[33,2,33,4],[33,5,33,7],[36,0,36,1],[36,2,36,4],[36,5,36,7],[35,0,35,1],[35,2,35,4],[18,0,18,4],[19,0,19,5],[27,0,27,4],[20,0,20,5],[29,0,29,5],[22,0,22,5],[21,0,21,5],[24,0,24,5],[25,0,25,4],[26,0,26,4],[28,0,28,5],[23,1,23,5],[35,5,35,7],[2,1,2,7],[3,0,3,3],[3,5,3,7],[8,0,8,1],[6,0,6,3],[11,0,11,1],[11,5,11,7],[9,0,9,1],[9,5,9,7],[12,0,12,1],[12,5,12,7],[10,0,10,1],[14,0,14,1],[14,5,14,7],[17,0,17,4]]}
["Карта заказа №",null," теплосчетчика ТЭМ-206 - ","2","(исполнение)"]
[]
["Заказчик:"]
[null,null,null,null,"УНП:"]
["(наименование предприятия, адрес, телефон/факс)"]
[]
["Класс точности теплосчётчика по СТБ EN 1434 (2 или 1)",null,null,null,null,null,{"$f":"IF( AND(EXACT(Лист1!C10, Лист2!A7),Лист1!D10<81), \"ПРПм\", \" \")","v":" "},"2"]
[]
["Каналы",null,"Тип расходомера","DN, мм","Присоединение","Примечание"]
["1 канал",null,"нет",""," "]
["2 канал",null,"нет",""," "]
["3 канал",null,"нет",""," "]
["4 канал",null,"нет",""," "]
["5 канал",null,"нет",""]
["6 канал",null,"нет",""," "]
[]
["Комплектация (всего):"]
["Количество комплектов (пар) ТСП, шт. пар / Длина Lпогр (85; 120; 210)",null,null,null,null,"нет","/","нет"]
["Количество дополнительных одиночных ТСП, шт. / Длина Lпогр (85; 120; 210)",null,null,null,null,"нет","/","нет"]
["Переходной кабель для подключения интерфейса RS-232С (да/нет)",null,null,null,null,null,null,"нет"]
["Кабель подключения USB-Flash накопителя                       ",null,null,null,null,null,null,"да"]
["Наличие модуля для дистанционного снятия показаний (Ethernet; 3/4G; NB-IoT)",null,null,null,null,null,null,"нет"]
["Комплекты для монтажа расходомеров:",null,null,null,null,null,null,"нет"]
[null," - узел монтажный в сборе (МУ);\n - комплект монтажный частей россыпью: прокладки паронитовые, монтажные фланцы, болты, шпильки, гайки (КМЧ);\n - прямолинейные участки (ПУ);\n - комплект монтажных частей с прямолинейными участками (КМЧ+ПУ)"]
["Комплектация кабелем подключения:"]
["Кабель подключения ДП (2х0,35) шт. / Длина L (2; 5; 10; 30)   ",null,null,null,null,"нет","/","нет"]
["Кабель подключения ДП (4х0,35) шт. / Длина L (2; 5; 10; 30)   ",null,null,null,null,"нет","/","нет"]
["Кабель подключения ТСП шт. / Длина L (2; 5; 10; 30)  ",null,null,null,null,"нет","/","нет"]
["Шкаф теплосчетчика ШТ (да/нет) ",null,null,null,null,null,null,"нет"]
["Источник питания 24В (да/нет)",null,null,null,null,null,null,""]
["Схемы установки:",null,null,null,null,null,null,""]
[null,null,"Наименование схемы установки",null,null,"Примечание"]
["Система 1",null," -"]
["Система 2",null," -"]
["Система 3",null," -"]
["Система 4",null," -"]
["Система 5",null," -"]
["Система 6",null," -"]
["Количество приборов, шт.",null,1]
["Примечания "]
["Должность, Ф.И.О. и "]
["моб. телефон заказчика"]
["По карте заказа на предприятии–изготовителе составляется спецификация заказа теплосчетчика. Описание спецификации приведено в руководстве по эксплуатации на теплосчетчик АРВС.746967.037.400РЭ."]
[null,null,"   СОГЛАСОВАНО: _______________________________________________"]

{"sheet":"Лист2","index":1,"n_rows":56,"n_cols":12,"rows_kept":56,"cut":false,"hidden":true,"merged":[]}
["Исполнение",null,"Класс точности"]
[2,null,1]
[6,null,2]
[null,null,null,null,null,null,"Присоединение РСУ"]
["Тип расходомера",null,"РСУ-05.05","РСМ-06","нет",null,"1 канал","2 канал","3 канал","4 канал","5 канал","6 канал"]
["РСУ_05.05",null,15,15,null,null,{"$f":"IF(EXACT(Лист1!C10, Лист2!A6), \"резьбовое\", \" \")","v":" "},{"$f":"IF(EXACT(Лист1!C11, Лист2!A6), \"резьбовое\", \" \")","v":" "},{"$f":"IF(EXACT(Лист1!C12, Лист2!A6), \"резьбовое\", \" \")","v":" "},{"$f":"IF(EXACT(Лист1!C13, Лист2!A6), \"резьбовое\", \" \")","v":" "},{"$f":"IF(EXACT(Лист1!C14, Лист2!A6), \"резьбовое\", \" \")","v":" "},{"$f":"IF(EXACT(Лист1!C15, Лист2!A6), \"резьбовое\", \" \")","v":" "}]
["РСМ_06",null,20,25,null,null,{"$f":"IF(AND(EXACT(Лист1!C10, Лист2!A7), OR(EXACT(Лист1!D10, D6),EXACT(Лист1!D10, D7), EXACT(Лист1!D10, D8), EXACT(Лист1!D10, D9), EXACT(Лист1!D10, D10), EXACT(Лист1!D10, D11), )), \"ПРПм\", \" \")","v":" "},{"$f":"IF(AND(EXACT(Лист1!C11, Лист2!A7), OR(EXACT(Лист1!D11, D6),EXACT(Лист1!D11, D7), EXACT(Лист1!D11, D8), EXACT(Лист1!D11, D9), EXACT(Лист1!D11, D10), EXACT(Лист1!D11, D11), )), \"ПРПм\", \" \")","v":" "},{"$f":"IF(AND(EXACT(Лист1!C12, Лист2!A7), OR(EXACT(Лист1!D12, D6),EXACT(Лист1!D12, D7), EXACT(Лист1!D12, D8), EXACT(Лист1!D12, D9), EXACT(Лист1!D12, D10), EXACT(Лист1!D12, D11), )), \"ПРПм\", \" \")","v":" "},{"$f":"IF(AND(EXACT(Лист1!C13, Лист2!A7), OR(EXACT(Лист1!D13, D6),EXACT(Лист1!D13, D7), EXACT(Лист1!D13, D8), EXACT(Лист1!D13, D9), EXACT(Лист1!D13, D10), EXACT(Лист1!D13, D11), )), \"ПРПм\", \" \")","v":" "},{"$f":"IF(AND(EXACT(Лист1!C14, Лист2!A7), OR(EXACT(Лист1!D14, D6),EXACT(Лист1!D14, D7), EXACT(Лист1!D14, D8), EXACT(Лист1!D14, D9), EXACT(Лист1!D14, D10), EXACT(Лист1!D14, D11), )), \"ПРПм\", \" \")","v":" "},{"$f":"IF(AND(EXACT(Лист1!C15, Лист2!A7), OR(EXACT(Лист1!D15, D6),EXACT(Лист1!D15, D7), EXACT(Лист1!D15, D8), EXACT(Лист1!D15, D9), EXACT(Лист1!D15, D10), EXACT(Лист1!D15, D11), )), \"ПРПм\", \" \")","v":" "}]
["нет",null,25,32,null,null,{"$f":"IF(AND(EXACT(Лист1!C10, Лист2!A7), OR(EXACT(Лист1!D10, D7), EXACT(Лист1!D10, D8), EXACT(Лист1!D10, D9), EXACT(Лист1!D10, D10), EXACT(Лист1!D10, D11), EXACT(Лист1!D10, D12), EXACT(Лист1!D10, D13))), \"ПРП\", \" \")","v":" "},{"$f":"IF(AND(EXACT(Лист1!C11, Лист2!A7), OR(EXACT(Лист1!D11, D7), EXACT(Лист1!D10, D8), EXACT(Лист1!D11, D9), EXACT(Лист1!D11, D10), EXACT(Лист1!D11, D11), EXACT(Лист1!D11, D12), EXACT(Лист1!D11, D13))), \"ПРП\", \" \")","v":" "},{"$f":"IF(AND(EXACT(Лист1!C12, Лист2!A7), OR(EXACT(Лист1!D12, D7), EXACT(Лист1!D12, D8), EXACT(Лист1!D12, D9), EXACT(Лист1!D12, D10), EXACT(Лист1!D12, D11), EXACT(Лист1!D12, D12), EXACT(Лист1!D12, D13))), \"ПРП\", \" \")","v":" "},{"$f":"IF(AND(EXACT(Лист1!C13, Лист2!A7), OR(EXACT(Лист1!D13, D7), EXACT(Лист1!D13, D8), EXACT(Лист1!D13, D9), EXACT(Лист1!D13, D10), EXACT(Лист1!D13, D11), EXACT(Лист1!D13, D12), EXACT(Лист1!D13, D13))), \"ПРП\", \" \")","v":" "},{"$f":"IF(AND(EXACT(Лист1!C14, Лист2!A7), OR(EXACT(Лист1!D14, D7), EXACT(Лист1!D14, D8), EXACT(Лист1!D14, D9), EXACT(Лист1!D14, D10), EXACT(Лист1!D14, D11), EXACT(Лист1!D14, D12), EXACT(Лист1!D14, D13))), \"ПРП\", \" \")","v":" "},{"$f":"IF(AND(EXACT(Лист1!C15, Лист2!A7), OR(EXACT(Лист1!D15, D7), EXACT(Лист1!D15, D8), EXACT(Лист1!D15, D9), EXACT(Лист1!D15, D10), EXACT(Лист1!D15, D11), EXACT(Лист1!D15, D12), EXACT(Лист1!D15, D13))), \"ПРП\", \" \")","v":" "}]
[null,null,32,40]
[null,null,40,50]
[null,null,50,80]
[null,null,80,100]
[null,null,null,150]
[]
[]
["пар ТСП",null,"одиночных ТСП",null,"Выбор"]
["нет",null,"нет",null,"да"]
[1,null,1,null,"нет"]
[2,null,2]
[3,null,3]
[null,null,4]
[null,null,5]
[null,null,6]
["длина",null,"длина",null,"Дистанционное снятие данных"]
["нет",null,"нет",null,"нет"]
[85,null,85,null,"Ethernet"]
[120,null,120,null,"3/4G"]
[210,null,210,null,"NB-IoT"]
[]
[]
["Система",null,"Кабель ДП",null,"Длина"]
[" -",null,"нет",null,"нет"]
["Открытая",null,1,null,2]
["Подача",null,2,null,5]
["Обратка",null,3,null,{"$f":"E34+5","v":10}]
["ГВС циркуляция",null,4,null,15]
["Тупиковая ГВС",null,5,null,20]
["Расходомер V",null,6,null,25]
["Расходомер M",null,null,null,30]
["НСО",null,null,null,35]
["Подпитка НСО",null,null,null,40]
["Р-Подача+Подп.",null,null,null,{"$f":"E41+5","v":45}]
["Источник",null,null,null,50]
["Подпитка Источника",null,null,null,55]
["Подача + Р",null,null,null,60]
["Магистраль",null,null,null,65]
["Холод",null,null,null,70]
["Тепло/Холод",null,null,null,75]
["Температура",null,null,null,80]
[null,null,null,null,85]
["Комплекты для монтажа расходомеров",null,null,null,90]
["нет",null,null,null,95]
["МУ",null,null,null,100]
["КМЧ"]
["ПУ"]
["КМЧ+ПУ"]